Cogmind - Beta 16.1 @@@ ROGUE MODE // 2026.03.20 @ 16:30:40 Player: AngelSpirit Result: Destroyed by D-53 Grenadier with Mini Grenade Launcher Performance ------------- Evolutions (0) 0 Regions Visited (4) 800 Robots Destroyed (34) 170 Value Destroyed (651) 651 Prototype IDs (37) 740 Alien Tech Used (0) 0 Bonus (300) 300 TOTAL SCORE: 2661 Bonus ------- Aligned with FarCom 300 Cogmind --------- Core Integrity 0/250 Matter 281/300 Energy 100/100 System Corruption 0% Temperature Cool (0) Movement Rolling (130) Ox2 Location -9/Mines Parts ------- > --- POWER (1) -------- (None) > --- PROPULSION (2) --- Compact Wheel > --- UTILITY (2) ------ High-capacity Storage Unit > --- WEAPON (2) ------- (None) > --- INVENTORY (20) --- Light Ion Engine Nuclear Core Nuclear Core Reinforced Deuterium Engine Wheel Compact Wheel Compact Wheel Transport Network Coupler Hacking Suite Decoy Drone Bay Latent Energy Streamer Assault Rifle Assault Rifle Rocket Launcher Proton Bomb Trap Proton Bomb Trap Proton Bomb Trap Peak State ------------ > --- POWER ------------ Improved Ion Engine > --- PROPULSION ------- Wheel Compact Wheel > --- UTILITY ---------- High-capacity Storage Unit Skeleton Box > --- WEAPON ----------- Assault Rifle Heavy Assault Rifle > --- INVENTORY -------- Light Ion Engine Nuclear Core Nuclear Core Reinforced Deuterium Engine Wheel Compact Wheel Compact Wheel Compact Wheel Transport Network Coupler Light Armor Plating Hacking Suite Assault Rifle Assault Rifle Assault Rifle Assault Rifle Rocket Launcher Datajack Mining Laser [Rating: 16] Favorites ----------- Power Improved Ion Engine Engine Improved Ion Engine Power Core Light Nuclear Core Propulsion Compact Wheel Wheel Compact Wheel Utility High-capacity Storage Unit Device Improved Heat Sink Storage High-capacity Storage Unit Protection Light Armor Plating Weapon Assault Rifle Ballistic Gun Assault Rifle Launcher Grenade Launcher Special Melee Weapon Datajack Build | -11 -10 -10 -10 -9 ------- Run | Yrd Mat Min Exi Min Slots Evolved . | . . . . . Power . | . . . . . Propulsion . | . . . . . Utility . | . . . . . Weapon . | . . . . . Parts Attached 30 | 7 12 4 2 5 Power 3 | 1 1 1 . . Engine 2 | 1 . 1 . . Core 1 | . 1 . . . Reactor . | . . . . . Propulsion 8 | 2 4 . . 2 Treads . | . . . . . Leg . | . . . . . Wheel 8 | 2 4 . . 2 Hover . | . . . . . Flight . | . . . . . Utility 9 | 2 4 1 1 1 Device 4 | 1 2 . 1 . Storage 3 | 1 2 . . . Processor . | . . . . . Hackware . | . . . . . Protection 2 | . . 1 . 1 Artifact . | . . . . . Weapon 10 | 2 3 2 1 2 Energy Gun . | . . . . . Energy Cannon . | . . . . . Ballistic Gun 7 | 2 2 1 . 2 Ballistic Cannon . | . . . . . Launcher 2 | . 1 1 . . Special Weapon . | . . . . . Impact Weapon . | . . . . . Slashing Weapon . | . . . . . Piercing Weapon . | . . . . . Special Melee Weapon 1 | . . . 1 . Unidentified Prototypes . | . . . . . Parts Lost 14 | . 7 . . 7 Power 2 | . 1 . . 1 Propulsion 5 | . 4 . . 1 Utility 4 | . 2 . . 2 Weapon 3 | . . . . 3 Highest Loss Streak 7 | . 3 . . 7 To Critical Strikes . | . . . . . Average Backups 11 | . 6 14 18 17 Power 1 | . . 1 3 4 Propulsion 2 | . 1 4 4 3 Utility 2 | . . 2 3 3 Weapon 4 | . 3 5 7 5 Tool/Special . | . . . . . Unused Backups 13 | . . . . 13 Power 4 | . . . . 4 Propulsion 2 | . . . . 2 Utility 3 | . . . . 3 Weapon 4 | . . . . 4 Tool/Special . | . . . . . Average Slot Usage (%) 99 | . 98 99 100 99 Engine 8 | . 3 10 14 14 Core 4 | . 9 3 . . Wheel 27 | . 27 28 28 28 Device 6 | . 13 3 . . Storage 14 | . 14 14 14 14 Protection 7 | . . 10 14 13 Ballistic Gun 26 | . 27 27 22 28 Special Melee Weapon 1 | . . . 5 . Peak Build Rating 16 | 7 12 12 16 14 Average Rating 10 | 5 9 10 11 13 On Entrance 8 | . 7 12 10 12 Avg Prop Armor Cover (%) . | . . . . . Naked Turns . | . . . . . Heaviest Build 55 | 13 50 55 55 55 Greatest Support 32 | 32 32 26 26 26 Greatest Overweight (x) 3 | . 3 2 2 2 Average Overweight (x) 1 | . . 1 1 2 Largest Inventory Capacity 20 | 8 20 20 20 20 Average Capacity 17 | 7 15 20 20 20 Most Carried 20 | . 13 16 19 20 Average Carried 12 | . 6 14 18 19 Final Capacity 20 | 8 20 20 20 20 Final Carried 19 | . 13 15 19 18 Class Distribution -------------------- 79% | Scavenger-Mutant 20% | Mutant Dominant Class ---------------- Scavenger-Mutant | -10/Materials Scavenger-Mutant | -10/Mines Scavenger-Mutant | -10/Exiles Scavenger-Mutant | -9/Mines Resources | -11 -10 -10 -10 -9 ----------- Run | Yrd Mat Min Exi Min Matter Collected 993 | 272 498 151 . 72 Remotely . | . . . . . Salvage Created 853 | 51 696 90 . 16 Parts 65 | 6 50 7 . 2 Haulers Intercepted 2 | . 2 . . . Recyclers Shooed 1 | . 1 . . . Parts Field Recycled . | . . . . . Retrieved Matter . | . . . . . Parts Self-Destructed . | . . . . . Prevented . | . . . . . Parts Restored . | . . . . . Kills | -11 -10 -10 -10 -9 ------- Run | Yrd Mat Min Exi Min Combat Hostiles Destroyed 21 | . 13 7 . 1 Guns 13 | . 10 2 . 1 AOE 8 | . 3 5 . . Classes Destroyed 10 | 1 8 . . 1 Worker 3 | . 3 . . . Builder 1 | . 1 . . . Tunneler 3 | 3 . . . . Hauler 2 | . 2 . . . Recycler 1 | . 1 . . . Mechanic 1 | . 1 . . . Operator 2 | . 2 . . . Swarmer 8 | . 3 5 . . Grunt 12 | . 10 2 . . Demolisher 1 | . . . . 1 Best Kill Streak 7 | 2 7 3 . 1 Combat Bots Only 3 | . 3 3 . 1 Max Kills in Single Turn 3 | 1 3 2 . 1 Gunslinging 1 | . . 1 . . Exploded 3 | . 3 2 . . Melee . | . . . . . Uniques/NPCs Destroyed . | . . . . . Combat | -11 -10 -10 -10 -9 -------- Run | Yrd Mat Min Exi Min Hostile Shots Fired 81 | . 51 13 . 17 Missed 14 | . 12 2 . . Hits 67 | . 39 11 . 17 Projectile 67 | . 39 11 . 17 AOE 17 | . . . . 17 Critical Strikes 1 | . 1 . . . Damage Taken 1387 | . 523 138 . 726 Core 257 | . 91 38 . 128 Absorbed by Shields . | . . . . . Core Remaining (%) 100 | 100 . . . . Volleys Fired 110 | 18 77 9 . 6 Largest 2 | 2 2 2 . 2 Hottest 43 | 40 40 43 . 43 Shots Fired 213 | 36 153 12 . 12 Gun 206 | 36 152 6 . 12 Cannon . | . . . . . Launcher 7 | . 1 6 . . Special . | . . . . . Kinetic 206 | 36 152 6 . 12 Thermal . | . . . . . Explosive 7 | . 1 6 . . Electromagnetic . | . . . . . Robot Hit Streak 18 | 3 18 6 . 2 Robot Miss Streak 9 | 3 9 4 . 2 Penetration Max . | . . . . . Secondary Targets 2 | . . 1 . 1 Max Gunslinging Chain 1 | . . 1 . 1 Shots Hit Robots 141 | 21 101 7 6 6 Core Hits 58 | 6 40 9 . 3 Critical Kills . | . . . . . Critical Parts Destroyed 1 | . 1 . . . Critical Strikes 1 | . 1 . . . Destroy 1 | . 1 . . . Melee Attacks 6 | . . . 6 . Impact . | . . . . . Slashing . | . . . . . Piercing . | . . . . . Sneak Attacks 6 | . . . 6 . Combat Hostiles . | . . . . . Follow-up Attacks . | . . . . . Damage Inflicted 1954 | 175 1152 544 . 83 Guns 1355 | 175 1045 52 . 83 Cannons . | . . . . . Explosions 599 | . 107 492 . . Melee . | . . . . . Ramming . | . . . . . Kinetic 1355 | 175 1045 52 . 83 Thermal . | . . . . . Explosive 599 | . 107 492 . . Electromagnetic . | . . . . . Impact . | . . . . . Slashing . | . . . . . Piercing . | . . . . . Highest Corruption . | . . . . . Average Corruption . | . . . . . Corruption Purged . | . . . . . Corruption Blocked . | . . . . . Overload Shots . | . . . . . Overflow Damage 66 | . 23 43 . . Projectiles . | . . . . . Explosions 66 | . 23 43 . . Melee . | . . . . . Knockbacks . | . . . . . Impact . | . . . . . Kinetic . | . . . . . Secondary . | . . . . . Self-Inflicted Damage 22 | . . 22 . . Shots 1 | . . 1 . . Rammed . | . . . . . Targets Rammed . | . . . . . Kicked . | . . . . . Crushed . | . . . . . Highest Temperature 24 | . 17 24 . . Average Temperature 8 | . 6 11 . . Received Heat Transfer 321 | . 285 36 . . Siege Activations . | . . . . . Martial Activations . | . . . . . Shielding Activations . | . . . . . Robots Disrupted . | . . . . . Combat Hostiles . | . . . . . Robots Corrupted . | . . . . . Combat Hostiles . | . . . . . Parts Fried . | . . . . . Impact Corruptions . | . . . . . Robots Melted . | . . . . . Combat Hostiles . | . . . . . Parts Melted . | . . . . . Heat Transferred . | . . . . . Parts Sabotaged . | . . . . . Parts Stolen . | . . . . . Parts Stripped . | . . . . . Power Chain Reactions . | . . . . . Alert | -11 -10 -10 -10 -9 ------- Run | Yrd Mat Min Exi Min Maximum Alert Level . | . . . . . Low Security (%) 100 | 100 100 100 . 100 Level 1 . | . . . . . Level 2 . | . . . . . Level 3 . | . . . . . Level 4 . | . . . . . Level 5 . | . . . . . High Security . | . . . . . Max Security . | . . . . . Peak Influence 138 | 10 138 96 . 30 Initial 30 | . . 30 . . Average 30 | 1 40 30 . . Influence Increases 752 | 15 456 251 . 30 Destroy 0b10 Robot/C 420 | . 260 140 . 20 Destroy 0b10 Robot/NC 65 | 15 50 . . . Destroy Leader 94 | . 54 30 . 10 Allied During Kill 11 | . . 11 . . Successful Hack 23 | . 23 . . . Select Force Hacks 60 | . 60 . . . Destroy Structure 49 | . 9 40 . . Lose Combat Pursuer 30 | . . 30 . . Influence Decreases 752 | 15 378 329 . 30 Entered New Map 48 | . . 48 . . Time Decay 624 | 15 318 281 . 10 Lost Part 80 | . 60 . . 20 Squads Dispatched 5 | . 5 . . . Investigation 3 | . 3 . . . Extermination . | . . . . . Reinforcement 2 | . 2 . . . Assault . | . . . . . Garrison . | . . . . . Intercept . | . . . . . Searches Triggered . | . . . . . Construction Impeded . | . . . . . Haulers Reinforced . | . . . . . Active Scanning Responses . | . . . . . Cargo Convoy Interrupts . | . . . . . Stealth | -11 -10 -10 -10 -9 --------- Run | Yrd Mat Min Exi Min Distress Signals 2 | . 2 . . . Communications Jammed . | . . . . . Distress Signals . | . . . . . Times Spotted 35 | . 20 11 . 4 Peak Tracking Total 3 | . 3 3 . 3 Tactical Retreats 1 | . . 1 . . Traps | -11 -10 -10 -10 -9 ------- Run | Yrd Mat Min Exi Min Traps Triggered 4 | . 4 . . . Indirectly . | . . . . . Trap Hack Attempts . | . . . . . Triggered . | . . . . . Disarmed . | . . . . . Reprogrammed . | . . . . . Reused . | . . . . . Traps Extracted . | . . . . . Installed . | . . . . . Triggered . | . . . . . Most Traps Carried 3 | . . . . 3 Machines | -11 -10 -10 -10 -9 ---------- Run | Yrd Mat Min Exi Min Machines Disabled . | . . . . . Max in Single Turn . | . . . . . Machines Repaired . | . . . . . Machines Dismantled . | . . . . . Machines Sabotaged . | . . . . . Overloaded Fab Kills . | . . . . . Hacking | -11 -10 -10 -10 -9 --------- Run | Yrd Mat Min Exi Min Machines Accessed 11 | . 8 . 2 1 Terminals 6 | . 6 . . . Fabricators . | . . . . . Repair Stations . | . . . . . Recycling Units 2 | . 2 . . . Scanalyzers . | . . . . . Garrison Access . | . . . . . Total Hacks 28 | . 25 . 2 1 Successful 18 | . 15 . 2 1 Failed 10 | . 10 . . . Catastrophic 1 | . 1 . . . Database Lockouts . | . . . . . Manual 24 | . 23 . 1 . Terminals 22 | . 22 . . . Fabricators . | . . . . . Repair Stations . | . . . . . Recycling Units 3 | . 3 . . . Scanalyzers . | . . . . . Garrison Access . | . . . . . Terminal Hacks 8 | . 5 . 2 1 Record 1 | . . . 1 . Part Schematic 2 | . 2 . . . Robot Schematic 1 | . 1 . . . Robot Analysis 2 | . 2 . . . Open Door 1 | . . . . 1 Proto ID Catalog 1 | . . . 1 . Fabricator Hacks . | . . . . . Repair Station Hacks . | . . . . . Recycling Unit Hacks 1 | . 1 . . . Retrieve Components 1 | . 1 . . . Scanalyzer . | . . . . . Garrison Access Hacks . | . . . . . Unauthorized Hacks 9 | . 9 . . . Terminals 7 | . 7 . . . Botnet 2 | . 2 . . . Skim 5 | . 5 . . . Fabricators . | . . . . . Repair Stations . | . . . . . Recycling Units 2 | . 2 . . . Tunnel 2 | . 2 . . . Scanalyzers . | . . . . . Garrison Access . | . . . . . Data Cores Recovered . | . . . . . Used . | . . . . . Hacking Detections 6 | . 6 . . . Full Trace Events . | . . . . . Feedback Events . | . . . . . Feedback Blocked . | . . . . . Robot Schematics Acquired 1 | . 1 . . . Robots Built . | . . . . . Authchips . | . . . . . Time . | . . . . . Total Robot Build Rating . | . . . . . Part Schematics Acquired 2 | . 2 . . . Parts Built . | . . . . . Authchips . | . . . . . Time . | . . . . . Total Part Build Rating . | . . . . . Part Studies Acquired . | . . . . . Parts Repaired . | . . . . . Time . | . . . . . Parts Recycled . | . . . . . Recycled Matter . | . . . . . Retrieved Matter . | . . . . . Retrieved Components 10 | . 10 . . . Parts Scanalyzed . | . . . . . Part Schematics Acquired . | . . . . . Parts Damaged . | . . . . . Bothacking | -11 -10 -10 -10 -9 ------------ Run | Yrd Mat Min Exi Min Used RIF Installer . | . . . . . Robots Hacked 4 | . . . 4 . Non-combat 3 | . . . 3 . Combat 1 | . . . 1 . Robot Hacks Applied 5 | . . . 5 . parse_system 5 | . . . 5 . Relay Couplers Released . | . . . . . Fabnet Peak Effective % . | . . . . . Robots Rewired . | . . . . . Allies Hacked . | . . . . . Hacks Repelled . | . . . . . Allies | -11 -10 -10 -10 -9 -------- Run | Yrd Mat Min Exi Min Total Allies 3 | . . 3 . . Largest Group 3 | . . 3 3 3 Highest-Rated Group 40 | . . 40 40 40 Highest-Rated Ally 16 | . . 16 16 16 Total Orders 2 | . . 2 . . STAY 1 | . . 1 . . FOLLOW 1 | . . 1 . . Ally Attacks 2 | . . . . 2 Total Damage 24 | . . . . 24 Kills . | . . . . . Allies Corrupted . | . . . . . Allies Melted . | . . . . . Intel | -11 -10 -10 -10 -9 ------- Run | Yrd Mat Min Exi Min Active Infowar (turns) 335 | 23 312 . . . Seismic 335 | 23 312 . . . Robot Analysis Total 2 | . 2 . . . Derelict Logs Recovered 2 | . . 2 . . Drone Launches . | . . . . . Drone Recoveries . | . . . . . Exploration | -11 -10 -10 -10 -9 ------------- Run | Yrd Mat Min Exi Min Turns Passed 3065 | 129 1198 834 618 286 Spaces Moved 2315 | 72 852 667 493 231 Core 1 | 1 . . . . Treads . | . . . . . Legs . | . . . . . Wheels 2314 | 71 852 667 493 231 Hover . | . . . . . Flight . | . . . . . Fastest Speed 50 | 50 100 105 105 110 Average Speed 111 | 99 103 116 119 110 Slowest Speed 145 | 100 145 120 120 130 Overloaded Moves . | . . . . . Propulsion Burnouts . | . . . . . Robots Hopped . | . . . . . Potential Cave-ins . | . . . . . Cave-ins Triggered . | . . . . . Exploration Rate (%) 65 | 5 99 99 71 54 Regions Visited 4 Branch Regions 3 Pre-discovered Areas 4 | . 2 1 1 . Known Exits Taken . | . . . . . Unknown Exits Taken 4 | 1 1 1 1 . Scrap Searched 3 | . . 1 . 2 Spaces Dug . | . . . . . Terrain Destroyed 59 | . 9 50 . . Melee . | . . . . . Projectile . | . . . . . AOE 59 | . 9 50 . . Terrain Rammed . | . . . . . Walls Destroyed . | . . . . . Machines Disabled . | . . . . . Actions | -11 -10 -10 -10 -9 --------- Run | Yrd Mat Min Exi Min Total 2594 | 97 1022 710 515 250 Wait 86 | 1 57 21 7 . Move 2311 | 71 851 666 492 231 Hop . | . . . . . Pick Up 27 | . 16 3 4 4 Fast Attach 22 | 7 10 3 2 . Attach 5 | . 3 . . 2 Detach . | . . . . . Swap 13 | . 4 4 2 3 Drop 14 | . 4 4 2 4 Fire 110 | 18 77 9 . 6 Melee 6 | . . . 6 . Ram . | . . . . . Kick . | . . . . . Crush . | . . . . . Escape Stasis . | . . . . . Rewire . | . . . . . Trap . | . . . . . Miscellaneous . | . . . . . Route ------- -11/Scrapyard -10/Materials (discovered 6 exits: *Mat x3 / [*Min x2] / [*Sub]) -10/Mines (discovered 4 exits: *Mat x2 / *Exi / [*Sub]) -10/Exiles -9/Mines (discovered 2 exits: *Mat x2) History --------- Turn | Location | Event 9 | -11/Scrapyard | Discovered new exit (range 16) 130 | -11/Scrapyard | Entered Materials 131 | -10/Materials | Met a group of wandering Federalists 155 | -10/Materials | Discovered new exit (range 7) 259 | -10/Materials | Discovered new exit (range 7) 314 | -10/Materials | Build established: Mutant 350 | -10/Materials | Discovered new exit (range 7) 540 | -10/Materials | Lost 3 parts (1p1n1u) 681 | -10/Materials | Discovered new exit (range 5) 777 | -10/Materials | Discovered new exit (range 4) 862 | -10/Materials | Discovered new exit (range 15) 1037 | -10/Materials | Build established: Scavenger-Mutant 1083 | -10/Materials | Learned Storage emergency access door positions 1141 | -10/Materials | Learned 2 Mines zone layouts 1260 | -10/Materials | Learned Storage trap positions 1283 | -10/Materials | Loaded intel: 1 repair station location 1328 | -10/Materials | Entered Mines 1329 | -10/Mines | Identified exit to Materials 1342 | -10/Mines | Assisted by bots powering up and referring to "LRC-V3" 1426 | -10/Mines | Deemed a non-threat by the Exiles lab entrance 1426 | -10/Mines | Discovered new exit (range 5) 1506 | -10/Mines | Joined a pair of Derelicts in attacking an 0b10 outpost 1577 | -10/Mines | Received a Rocket Launcher from a helpful Derelict 1606 | -10/Mines | Learned Materials security intel 1712 | -10/Mines | Core integrity fell below 50% 2139 | -10/Mines | Discovered new exit (range 10) 2162 | -10/Mines | Entered Exiles 2162 | -10/Exiles | Accompanied by 3 allies 2195 | -10/Exiles | Met 8R-AWN 2213 | -10/Exiles | Met EX-HEX 2266 | -10/Exiles | Met EX-DEC 2271 | -10/Exiles | Learned location of Zion (-7) 2290 | -10/Exiles | Met EX-BIN 2314 | -10/Exiles | Aligned with FarCom system 2315 | -10/Exiles | Given EX-Vault access code 2343 | -10/Exiles | Opened EX-Vault 2351 | -10/Exiles | Found Skeleton Box 2358 | -10/Exiles | Found Latent Energy Streamer 2383 | -10/Exiles | Warned to stay clear of 0b10 Research branches 2760 | -10/Exiles | Discovered new exit (range 14) 2780 | -10/Exiles | Left Exiles lab with Latent Energy Streamer 2780 | -10/Exiles | Entered Mines 2780 | -9/Mines | Accompanied by 3 allies 2781 | -9/Mines | Identified exit to Materials 2783 | -9/Mines | Found the Drone Emporium 2792 | -9/Mines | Found Prototype Device 2868 | -9/Mines | Found a hidden stash of uninstalled traps 3019 | -9/Mines | Discovered exit to Materials (range 5) 3037 | -9/Mines | Assembled infested the area 3050 | -9/Mines | Core integrity fell below 20% 3066 | -9/Mines | Destroyed by D-53 Grenadier with Mini Grenade Launcher Last Messages --------------- 03041_ The unstable cave ceiling collapses. 03043_ Acquired 6 matter. 03047_ U-05 Engineer lays Concrete. 03047_ Lgt. Armor Plating destroyed. 03048_ U-05 Engineer lays Concrete. 03051_ The unstable cave ceiling collapses. 03052_ U-05 Engineer lays Concrete. 03053_ The unstable cave ceiling collapses. 03053_ U-05 Engineer lays Concrete. 03053_ U-05 Engineer destroyed. 03053_ Assault Rifle destroyed. 03056_ D-53 Grenadier destroyed. 03056_ Switching to secondary target: D-53 Grenadier. 03057_ Lgt. Armor Plating destroyed. 03061_ Wheel destroyed. 03063_ Imp. Ion Engine destroyed. 03065_ The unstable cave ceiling collapses. 03066_ Assault Rifle destroyed. 03066_ Hvy. Assault Rifle destroyed. Map ----- +----------------------------------------------------+ | ???????????????????????????????????????????? | | ???????????????????????????????????????????? | | ???????????????????????????????????????????? | | ???????????????????????????????????????????? | | ???????????????????????????????????????????? | | ???????????????????????????????????????????? | | ???????????????????????????????????????????? | | ???????????????????????????????????????????? | | ???????????????????????????????????????????? | | ???????????????????????????????????????????? | | ???????????????????????????????????????????? | | ???????????????????????????????????????????? | | ???????????????????????????????????????????? | | ???????????????????????????????????????????? | | ???????????????????????????????????????????? | | ##?????????????????????????????????????????? | | #?????????????????????????????????????????? | | #?????? #?????????????????????????? ?????? | | ##???## ###?????????????????????? ??????? | | ##?# ?????????????????? ??????? | | ## ?????????????????? #??????? | | #???????????????##???? #??????? | | """ #???????????##### ##### #??????? | | """ #???????????# # #??????? | | """ ##?????????# ## #??????? | | ####??????????# @ #??????? | | ##?????????????#### #??????? | | ##???????????????# a ! #??????? | | ##?????????????## #??????? | | #?????????????# #??????? | | #????????????# ##??????? | | ##????????????## # ## *%= #???????? | | ###??????????????# ##### a #???????? | | ##????????????????# ???? d! #???????? | | ##?????????????????# ???? # ##???????? | | ##????####??????????# #??? %[ #????????? | | #????## ##?????????# #??# % #????????? | | #???## ##????????# #??## #????????? | | #???# ######???# #??# ####????? | | ##### ###?# #??### < #????? | | ### #???## % #????? | | #### # ####### #????? | | ###### ##??## ##????? | | ????# #???## """ ###?????? | | ????# #??## """ ######## ##???????? | | ????## ##?## """ #??????## #????????? | | ?????####??# #???????? #????????? | | ???????????# ##???????? #????????? | | ???????????# ## ####????????? #????????? | | ???????????## ### ##########??? #????????? | +----------------------------------------------------+ Best States ------------- Heat Dissipation 39 Energy Generation 14 Energy Capacity 265 Matter Stores 300 Matter Capacity 300 Sight Range 16 Terrain Scan Density 10 Armor Coverage 150 Evasion (%) 40 Item Schematics ----------------- Hcp. Storage Unit | -10/Materials | Hacked Huge Storage Unit | -10/Materials | Hacked Robot Schematics ------------------ M-13 Machinist | -10/Materials | Hacked Fabricated ------------ Nothing Repaired ---------- Nothing Studied --------- None Alien Tech Used ----------------- None Achievements -------------- None Challenges ------------ None Game ------ Seed LightningLegScythe Manual? 0 Play Time 00:19:45 Cumulative 639.4 hours Start 2026.03.20 @ 16:11:21 End 2026.03.20 @ 16:30:40 Sessions 1 Manual Loads 0 Difficulty Rogue Special Mode None Game No. 206 Rogue 206 Adventurer 0 Explorer 0 Win Type - Total 23 Types 9/1/6/1/1/0/1/1/1/2 Lore% 92 Gallery% 86 Achievement% 79 Wizard Run 0 Options --------- Layout 1 ASCII 0 Keyboard 0 Movement Mouse Keybinds 0 Fullscreen 2 Font 32/SmallcapsGlow Map View 50x35 Zoom Use 0% Tactical HUD 1 Map Filters NONE Filters NONE Steam 1 RUN: 7d671062-23bd-4271-8b1a-e13b43ea57c5